Workbook

Sheet TAB Gen
A1: SUBESTACION | B1: TABLERO GENERAL LABORATORIO DE MECÁNICA
A2: CONTIENE | B2: MEMORIAS DE CALCULO
A3: TABLERO T GEN (TABLERO GENERAL) | B3: DENOMINACION | C3: CARGA TOTAL | D3: DEMANDA | E3: F.P | F3: I (A) | G3: PROTECCION | H3: ALIMENTADOR | I3: LONGITUD | J3: R | K3: Reg | L3: PERDIDAS
A4: UBICACIÓN | C4: VA | D4: VA | G4: BIPOLAR (A) | H4: CONDUCTORES DE COBRE | I4: (M) | J4: Ω/KM | K4: % | L4: VATIOS
A5: CUARTO ELÉCTRICO
A6: ='TAB Deformación'!S38 -> TABLERO Deformación | B6: ='TAB Deformación'!T38 -> T-DF | C6: ='TAB Deformación'!U38 -> 43522 | D6: ='TAB Deformación'!V38 -> 22801 | E6: ='TAB Deformación'!W38 -> 0.95 | F6: ='TAB Deformación'!X38 -> 66.62221485 | G6: ='TAB Deformación'!Y38 -> 70 | H6: ='TAB Deformación'!Z38 -> 5H CABLE CU No 2 THHN | I6: ='TAB Deformación'!AA38 -> 30 | J6: ='TAB Deformación'!AB38 -> 0.623 | K6: ='TAB Deformación'!AC38 -> 0.9802877484 | L6: ='TAB Deformación'!AD38 -> 248.867789
A7: ='TAB Vibraciones Mec'!S37 -> TABLERO Vibraciones Mecánicas | B7: ='TAB Vibraciones Mec'!T37 -> T-VM | C7: ='TAB Vibraciones Mec'!U37 -> 12100 | D7: ='TAB Vibraciones Mec'!V37 -> 6290 | E7: ='TAB Vibraciones Mec'!W37 -> 0.95 | F7: ='TAB Vibraciones Mec'!X37 -> 18.37874354 | G7: ='TAB Vibraciones Mec'!Y37 -> 30 | H7: ='TAB Vibraciones Mec'!Z37 -> 5H CABLE CU No 8 THHN | I7: ='TAB Vibraciones Mec'!AA37 -> 30 | J7: ='TAB Vibraciones Mec'!AB37 -> 2.26 | K7: ='TAB Vibraciones Mec'!AC37 -> 0.9810038646 | L7: ='TAB Vibraciones Mec'!AD37 -> 68.70408873
A8: ='TAB Fundición'!S34 -> TABLERO Fundición | B8: ='TAB Fundición'!T34 -> TB- FD | C8: ='TAB Fundición'!U34 -> 386430 | D8: ='TAB Fundición'!V34 -> 193855 | E8: ='TAB Fundición'!W34 -> 0.95 | F8: ='TAB Fundición'!X34 -> 267.764401 | G8: ='TAB Fundición'!Y34 -> 300 | H8: ='TAB Fundición'!Z34 -> 5H CABLE CU No 2/0 THHN | I8: ='TAB Fundición'!AA34 -> 30 | J8: ='TAB Fundición'!AB34 -> 0.361 | K8: ='TAB Fundición'!AC34 -> 2.283003099 | L8: ='TAB Fundición'!AD34 -> 2329.460692
A9: ='TAB Tribología'!S36 -> TABLERO Tribología | B9: ='TAB Tribología'!T36 -> TB-TRIB | C9: ='TAB Tribología'!U36 -> 11792 | D9: ='TAB Tribología'!V36 -> 5712 | E9: ='TAB Tribología'!W36 -> 0.95 | F9: ='TAB Tribología'!X36 -> 16.68988602 | G9: ='TAB Tribología'!Y36 -> 30 | H9: ='TAB Tribología'!Z36 -> 5H CABLE CU No 8 THHN | I9: ='TAB Tribología'!AA36 -> 30 | J9: ='TAB Tribología'!AB36 -> 2.26 | K9: ='TAB Tribología'!AC36 -> 0.8908575635 | L9: ='TAB Tribología'!AD36 -> 56.65753689
A10: TOTAL | C10: =SUM(C6:C9) -> 453844 | D10: =SUM(D6:D9) -> 228658 | E10: 0.95 | F10: =+D10/(208*1.732*E10*2) -> 334.0577694 | G10: 120 | H10: ="5H CABLE CU No "&VLOOKUP(J10,'CONSTANTES K'!$I$6:$J$16,2,FALSE)&" THHN" -> 5H CABLE CU No 4/0 THHN | I10: 30 | J10: 0.243 | K10: =+(F10*I10*J10*1.732*100)/(1000*220) -> 1.917230424 | L10: =3*J10*I10*F10*F10/1000 -> 2440.573756
F11: X2 | H11: 2X4/0

Sheet TAB Fundición
A1: TABLERO Fundición
A3: =A1 -> TABLERO Fundición
A4: CTO | B4: Lamp | C4: TOMAS | F4: TRIFASICO | H4: POTENCIA | I4: CALIBRE | J4: PROTECC.(AMPS.) | M4: FASES | P4: DESCRIPCIÓN
B5: 160W | C5: 110V | D5: 220V | E5: OTRO | F5: 220V | G5: 440V | H5: VA | I5: AWG | J5: 1X | K5: 2X | L5: 3X | M5: F1 | N5: F2 | O5: F3
A6: 1-3-5 | F6: 1 | H6: 20000 | I6: 4 | L6: 100 | M6: =+H6/220 -> 90.90909091 | N6: =+H6/220 -> 90.90909091 | O6: =+H6/220 -> 90.90909091 | P6: Horno de inducción para fusión
A7: 2-4-6 | F7: 1 | H7: 110000 | I7: 1/0 | L7: 200 | M7: 160 | N7: 160 | O7: 160 | P7: Máquina de fundición a presión
A8: 7-9-11 | F8: 1 | H8: 250000 | I8: 1/0 | L8: 500 | M8: 320 | N8: 320 | O8: 320 | P8: Horno de inducción para temple
A9: 8-10-12 | F9: 1 | H9: 4400 | I9: 8 | L9: 30 | M9: =+H9/220 -> 20 | N9: =+H9/220 -> 20 | O9: =+H9/220 -> 20 | P9: Máquina universal
A10: 13 | C10: 5 | H10: =+B10*40+C10*150+D10*1*746+E10+F10*2*746+G10 -> 750 | I10: 12 | J10: 20 | M10: =+H10/120 -> 6.25 | P10: Tomacorrientes de uso general
A11: 14 | B11: 8 | H11: =+B11*160+C11*150+D11*1*746+E11+F11*2*746+G11 -> 1280 | I11: 12 | J11: 20 | N11: =+H11/110 -> 11.63636364 | P11: Iluminación Fundición
A12: 15 | H12: 0 | I12: 12 | J12: 20 | O12: =+H12/120 -> 0 | P12: Reserva
A13: 16 | H13: 0 | I13: 12 | J13: 20 | M13: =+H13/120 -> 0 | P13: Reserva
A14: 17 | H14: 0 | I14: 12 | J14: 20 | N14: =+H14/110 -> 0 | P14: Reserva
A15: 18 | H15: 0 | I15: 12 | J15: 20 | O15: =+H15/120 -> 0 | P15: Reserva
A17: SUBTOTAL | H17: =SUM(H6:H16) -> 386430 | M17: =SUM(M6:M16) -> 597.1590909 | N17: =SUM(N6:N16) -> 602.5454545 | O17: =SUM(O6:O16) -> 590.9090909
G19: CALCULO DE LA DEMANDA PARCIAL
C20: SUBTOTAL ILUMINACION | H20: =H11 -> 1280 | L20: AL | M20: 1 | N20: =+H20*M20 -> 1280
C21: SUBTOTAL TOMACORRIENTES | H21: =SUM(H6:H10) -> 385150 | L21: AL | M21: 0.5 | N21: =+H21*M21 -> 192575
C22: SUBTOTAL TOMACORRIENTES ESPECIALES | H22: =H16 -> 0 | L22: AL | M22: 1 | N22: =+H22*M22 -> 0
C23: TOTAL DEMANDA | H23: =SUM(H20:I22) -> 386430 | N23: =SUM(N20:N22) -> 193855
S28: PROYECTO | T28: Tablero de fundición
S29: CONTIENE | T29: TB-FD
S31: TABLERO | T31: DENOMINACION | U31: CARGA TOTAL | V31: DEMANDA | W31: F.P | X31: I (A) | Y31: PROTECCION | Z31: ALIMENTADOR | AA31: LONGITUD | AB31: RESISTENCIA | AC31: REGULACION | AD31: PERDIDAS
S32: UBICACIÓN | U32: VA | V32: VA | Y32: TRIPOLAR (A) | Z32: CONDUCTORES DE COBRE | AA32: (M) | AB32: OHMIOS /KM | AC32: PORCENTAJE | AD32: VATIOS
S33: =A3 -> TABLERO Fundición | T33: TB- FD | U33: =H17 -> 386430 | V33: =N23 -> 193855 | W33: 0.95 | X33: =+V33/(220*1.732*W33*2) -> 267.764401 | Y33: 300 | Z33: ="5H CABLE CU No "&VLOOKUP(AB33,'CONSTANTES K'!$I$6:$J$16,2,FALSE)&" THHN" -> 5H CABLE CU No 2/0 THHN | AA33: 30 | AB33: 0.361 | AC33: =+(X33*AA33*AB33*1.732*100)/(1000*220) -> 2.283003099 | AD33: =3*AB33*AA33*X33*X33/1000 -> 2329.460692
S34: =S33 -> TABLERO Fundición | T34: =T33 -> TB- FD | U34: =SUM(U33:U33) -> 386430 | V34: =SUM(V33:V33) -> 193855 | W34: =W33 -> 0.95 | X34: =+V34/(220*1.732*W34*2) -> 267.764401 | Y34: =Y33 -> 300 | Z34: ="5H CABLE CU No "&VLOOKUP(AB34,'CONSTANTES K'!$I$6:$J$16,2,FALSE)&" THHN" -> 5H CABLE CU No 2/0 THHN | AA34: 30 | AB34: 0.361 | AC34: =+(X34*AA34*AB34*1.732*100)/(1000*220) -> 2.283003099 | AD34: =3*AB34*AA34*X34*X34/1000 -> 2329.460692
X35: 2x | Z35: 2x

Sheet TAB Deformación
A1: TABLERO Deformación
A3: =A1 -> TABLERO Deformación
A4: CTO | B4: Lamp | C4: TOMAS | F4: TRIFASICO | H4: POTENCIA | I4: CALIBRE | J4: PROTECC.(AMPS.) | M4: FASES | P4: DESCRIPCIÓN
B5: 160W | C5: 110V | D5: 220V | E5: OTRO | F5: 220V | G5: 440V | H5: VA | I5: AWG | J5: 1X | K5: 2X | L5: 3X | M5: F1 | N5: F2 | O5: F3
A6: 1-3-5 | F6: 1 | H6: 10000 | I6: 8 | L6: 60 | M6: =+H6/220 -> 45.45454545 | N6: =+H6/220 -> 45.45454545 | O6: =+H6/220 -> 45.45454545 | P6: Troqueladora
A7: 2-4-6 | F7: 1 | H7: =+B7*40+C7*150+D7*1*746+E7+F7*2*746+G7 -> 1492 | I7: 12 | L7: 20 | M7: =+H7/220 -> 6.781818182 | N7: =+H7/220 -> 6.781818182 | O7: =+H7/220 -> 6.781818182 | P7: Brazo robótico
A8: 7-9-11 | F8: 1 | H8: 500 | I8: 12 | L8: 20 | M8: 2.272727273 | N8: 2.272727273 | O8: 2.272727273 | P8: Proyector digital de perfiles
A9: 8-10-12 | F9: 1 | H9: 4000 | I9: 12 | L9: 30 | M9: 18.18181818 | N9: 18.18181818 | O9: 18.18181818 | P9: Plegadora hidráulica
A10: 13-15-17 | H10: 18000 | I10: 12 | L10: 100 | M10: 81.81818182 | N10: 81.81818182 | O10: 81.81818182 | P10: Dobladora de tubo
A11: 14 | C11: 5 | H11: =+B11*40+C11*150+D11*1*746+E11+F11*2*746+G11 -> 750 | I11: 12 | J11: 20 | N11: =+H11/110 -> 6.818181818 | P11: Tomacorrientes de uso general
A12: 16 | B12: 10 | H12: =+B12*160+C12*150+D12*1*746+E12+F12*2*746+G12 -> 1600 | I12: 12 | J12: 20 | M12: =+H12/120 -> 13.33333333 | P12: Iluminación general
A13: 18 | B13: 8 | H13: =+B13*160+C13*150+D13*1*746+E13+F13*2*746+G13 -> 1280 | I13: 12 | J13: 20 | O13: =+H13/120 -> 10.66666667 | P13: Iluminación Lab Fundición
A14: 19 | C14: 1 | H14: 1300 | I14: 12 | J14: 20 | M14: 10.83333333 | P14: Compresor de tornillo Atlas Copco
A15: 20 | H15: 3000 | I15: 12 | J15: 30 | N15: =+H15/110 -> 27.27272727 | P15: Electroerosionadora de hilo
A16: 21 | H16: 800 | I16: 12 | K16: 20 | O16: =+H16/220 -> 3.636363636 | P16: Caja de ventilación 2000 CFM para Fundición
A17: 22 | H17: 800 | I17: 12 | K17: 20 | M17: =+H17/220 -> 3.636363636 | P17: Caja de ventilación 2000 CFM para Fundición
A18: 23 | H18: 0 | I18: 12 | J18: 20 | N18: =+H18/200 -> 0 | P18: Iluminación Deformación
A19: 24 | H19: 0 | I19: 12 | J19: 20 | O19: =+H19/120 -> 0 | P19: Reserva
A21: SUBTOTAL | H21: =SUM(H6:H20) -> 43522 | M21: =SUM(M6:M20) -> 182.3121212 | N21: =SUM(N6:N20) -> 188.6 | O21: =SUM(O6:O20) -> 168.8121212
G23: CALCULO DE LA DEMANDA PARCIAL
C24: SUBTOTAL ILUMINACION | H24: =H12+H13 -> 2880 | L24: AL | M24: 1 | N24: =+H24*M24 -> 2880
C25: SUBTOTAL TOMACORRIENTES | H25: =SUM(H6:H11)+H14+H16+H15 -> 39842 | L25: AL | M25: 0.5 | N25: =+H25*M25 -> 19921
C26: SUBTOTAL TOMACORRIENTES ESPECIALES | H26: =H20 -> 0 | L26: AL | M26: 1 | N26: =+H26*M26 -> 0
C27: TOTAL DEMANDA | H27: =SUM(H24:I26) -> 42722 | N27: =SUM(N24:N26) -> 22801
S32: PROYECTO | T32: BANCO DE DEFORMACIÓN
S33: CONTIENE | T33: TB-DF
S35: TABLERO | T35: DENOMINACION | U35: CARGA TOTAL | V35: DEMANDA | W35: F.P | X35: I (A) | Y35: PROTECCION | Z35: ALIMENTADOR | AA35: LONGITUD | AB35: RESISTENCIA | AC35: REGULACION | AD35: PERDIDAS
S36: UBICACIÓN | U36: VA | V36: VA | Y36: TRIPOLAR (A) | Z36: CONDUCTORES DE COBRE | AA36: (M) | AB36: OHMIOS /KM | AC36: PORCENTAJE | AD36: VATIOS
S37: =A3 -> TABLERO Deformación | T37: T-DF | U37: =H21 -> 43522 | V37: =N27 -> 22801 | W37: 0.95 | X37: =+V37/(208*1.732*W37) -> 66.62221485 | Y37: 70 | Z37: ="5H CABLE CU No "&VLOOKUP(AB37,'CONSTANTES K'!$I$6:$J$16,2,FALSE)&" THHN" -> 5H CABLE CU No 2 THHN | AA37: 30 | AB37: 0.623 | AC37: =+(X37*AA37*AB37*1.732*100)/(1000*220) -> 0.9802877484 | AD37: =3*AB37*AA37*X37*X37/1000 -> 248.867789
S38: =S37 -> TABLERO Deformación | T38: =T37 -> T-DF | U38: =SUM(U37:U37) -> 43522 | V38: =SUM(V37:V37) -> 22801 | W38: 0.95 | X38: =+V38/(208*1.732*W38) -> 66.62221485 | Y38: =Y37 -> 70 | Z38: ="5H CABLE CU No "&VLOOKUP(AB38,'CONSTANTES K'!$I$6:$J$16,2,FALSE)&" THHN" -> 5H CABLE CU No 2 THHN | AA38: =AA37 -> 30 | AB38: 0.623 | AC38: =+(X38*AA38*AB38*1.732*100)/(1000*220) -> 0.9802877484 | AD38: =3*AB38*AA38*X38*X38/1000 -> 248.867789

Sheet TAB Vibraciones Mec
A1: TABLERO Vibraciones Mecánicas
A3: =A1 -> TABLERO Vibraciones Mecánicas
A4: CTO | C4: TOMAS | F4: TRIFASICO | H4: POTENCIA | I4: CALIBRE | J4: PROTECC.(AMPS.) | M4: FASES | P4: DESCRIPCIÓN
B5: 160w | C5: 110V | D5: 220V | E5: OTRO | F5: 220V | G5: 440V | H5: VA | I5: AWG | J5: 1X | K5: 2X | L5: 3X | M5: F1 | N5: F2 | O5: F3
A6: 1-3-5 | F6: 1 | H6: =+B6*40+C6*150+D6*1*746+E6+F6*2*746+G6 -> 1492 | I6: 12 | L6: 20 | M6: =+H6/220 -> 6.781818182 | N6: =+H6/220 -> 6.781818182 | O6: =+H6/220 -> 6.781818182 | P6: Banco de alineación
A7: 2-4-6 | F7: 1 | H7: =+B7*40+C7*150+D7*1*746+E7+F7*2*746+G7 -> 1492 | I7: 12 | L7: 20 | M7: =+H7/220 -> 6.781818182 | N7: =+H7/220 -> 6.781818182 | O7: =+H7/220 -> 6.781818182 | P7: Banco de rodamientos
A8: 7-9-11 | F8: 1 | H8: 1492 | I8: 12 | L8: 20 | M8: 6.781818182 | N8: 6.781818182 | O8: 6.781818182 | P8: Banco de transmisiones dentadas
A9: 8-10-12 | F9: 1 | H9: 1492 | I9: 12 | L9: 20 | M9: 6.781818182 | N9: 6.781818182 | O9: 6.781818182 | P9: Banco de alineación en voladizo
A10: 13-15-17 | F10: 1 | H10: 1492 | I10: 12 | L10: 20 | M10: 6.781818182 | N10: 6.781818182 | O10: 6.781818182 | P10: Banco de resistencias y generador
A11: 14 | C11: 4 | H11: =+B11*40+C11*150+D11*1*746+E11+F11*2*746+G11+760 -> 1360 | I11: 12 | J11: 30 | N11: =+H11/110 -> 12.36363636 | P11: Banco de ejes con grietas + Computadores (2)
A12: 16 | C12: 8 | H12: 1200 | I12: 12 | J12: 20 | M12: =+H12/120 -> 10 | P12: Tomacorrientes de uso general
A13: 18 | B13: 10 | H13: =+B13*48+C13*150+D13*1*746+E13+F13*2*746+G13 -> 480 | I13: 12 | J13: 20 | O13: =+H13/120 -> 4 | P13: Iluminación general
A14: 19-21 | D14: 1 | H14: 1600 | I14: 10 | K14: 20 | M14: =+H14/220 -> 7.272727273 | N14: =M14 -> 7.272727273 | P14: Aire acondicionado 24000 BTU
A15: 20 | H15: 0 | I15: 12 | J15: 20 | N15: =+H15/110 -> 0 | P15: Reserva
A16: 22 | H16: =+B16*40+C16*150+D16*1*746+E16+F16*2*746+G16 -> 0 | I16: 14 | J16: 20 | P16: Reserva
A17: 23 | H17: 0 | I17: 15 | J17: 20 | P17: Reserva
A18: 24 | H18: 0 | I18: 16 | J18: 20 | P18: Reserva
A20: SUBTOTAL | H20: =SUM(H6:H19) -> 12100 | M20: =SUM(M6:M19) -> 51.18181818 | N20: =SUM(N6:N19) -> 53.54545455 | O20: =SUM(O6:O19) -> 37.90909091
G22: CALCULO DE LA DEMANDA PARCIAL
C23: SUBTOTAL ILUMINACION | H23: =H13 -> 480 | L23: AL | M23: 1 | N23: =+H23*M23 -> 480
C24: SUBTOTAL TOMACORRIENTES | H24: =SUM(H6:H12)+H14 -> 11620 | L24: AL | M24: 0.5 | N24: =+H24*M24 -> 5810
C25: SUBTOTAL TOMACORRIENTES ESPECIALES | H25: =H19 -> 0 | L25: AL | M25: 1 | N25: =+H25*M25 -> 0
C26: TOTAL DEMANDA | H26: =SUM(H23:I25) -> 12100 | N26: =SUM(N23:N25) -> 6290
S31: PROYECTO | T31: TABLERO DE VIBRACIONES MECÁNICAS
S32: CONTIENE | T32: TB-VM
S34: TABLERO | T34: DENOMINACION | U34: CARGA TOTAL | V34: DEMANDA | W34: F.P | X34: I (A) | Y34: PROTECCION | Z34: ALIMENTADOR | AA34: LONGITUD | AB34: RESISTENCIA | AC34: REGULACION | AD34: PERDIDAS
S35: UBICACIÓN | U35: VA | V35: VA | Y35: TRIPOLAR (A) | Z35: CONDUCTORES DE COBRE | AA35: (M) | AB35: OHMIOS /KM | AC35: PORCENTAJE | AD35: VATIOS
S36: =A3 -> TABLERO Vibraciones Mecánicas | T36: T-VM | U36: =H20 -> 12100 | V36: =N26 -> 6290 | W36: 0.95 | X36: =+V36/(208*1.732*W36) -> 18.37874354 | Y36: 30 | Z36: ="5H CABLE CU No "&VLOOKUP(AB36,'CONSTANTES K'!$I$6:$J$16,2,FALSE)&" THHN" -> 5H CABLE CU No 8 THHN | AA36: 30 | AB36: 2.26 | AC36: =+(X36*AA36*AB36*1.732*100)/(1000*220) -> 0.9810038646 | AD36: =3*AB36*AA36*X36*X36/1000 -> 68.70408873
S37: =S36 -> TABLERO Vibraciones Mecánicas | T37: =T36 -> T-VM | U37: =SUM(U36:U36) -> 12100 | V37: =SUM(V36:V36) -> 6290 | W37: 0.95 | X37: =+V37/(208*1.732*W37) -> 18.37874354 | Y37: 30 | Z37: ="5H CABLE CU No "&VLOOKUP(AB37,'CONSTANTES K'!$I$6:$J$16,2,FALSE)&" THHN" -> 5H CABLE CU No 8 THHN | AA37: =AA36 -> 30 | AB37: 2.26 | AC37: =+(X37*AA37*AB37*1.732*100)/(1000*220) -> 0.9810038646 | AD37: =3*AB37*AA37*X37*X37/1000 -> 68.70408873

Sheet TAB Tribología
A1: TABLERO Tribología
A3: =A1 -> TABLERO Tribología
A4: CTO | B4: Lamp | C4: TOMAS | F4: TRIFASICO | H4: POTENCIA | I4: CALIBRE | J4: PROTECC.(AMPS.) | M4: FASES | P4: DESCRIPCIÓN
B5: 160W | C5: 110V | D5: 220V | E5: OTRO | F5: 220V | G5: 440V | H5: VA | I5: AWG | J5: 1X | K5: 2X | L5: 3X | M5: F1 | N5: F2 | O5: F3
A6: 1-3-5 | F6: 1 | H6: =+B6*40+C6*150+D6*1*746+E6+F6*2*746+G6 -> 1492 | I6: 10 | L6: 20 | M6: =+H6/220 -> 6.781818182 | N6: =+H6/220 -> 6.781818182 | O6: =+H6/220 -> 6.781818182 | P6: Máquina para evaluación del desgaste abrasivo
A7: 2-4-6 | F7: 1 | H7: =+B7*40+C7*150+D7*1*746+E7+F7*2*746+G7 -> 1492 | I7: 10 | L7: 20 | M7: =+H7/220 -> 6.781818182 | N7: =+H7/220 -> 6.781818182 | O7: =+H7/220 -> 6.781818182 | P7: Máquina para evaluación del desgaste por fatiga
A8: 7-9-11 | F8: 1 | H8: 1492 | I8: 10 | L8: 20 | M8: 6.781818182 | N8: 6.781818182 | O8: 6.781818182 | P8: Dispositivo para evaluación del desgaste por erosión
A9: 8-10-12 | F9: 1 | H9: 1492 | I9: 10 | L9: 20 | M9: =+H9/220 -> 6.781818182 | N9: =+H9/220 -> 6.781818182 | O9: =+H9/220 -> 6.781818182 | P9: Cortadora metalográfica
A10: 13-15-17 | F10: 1 | H10: 1492 | I10: 10 | L10: 20 | M10: 6.781818182 | N10: 6.781818182 | O10: 6.781818182 | P10: Horno de mufla
A11: 14 | C11: 2 | H11: 300 | I11: 12 | J11: 20 | N11: =+H11/110 -> 2.727272727 | P11: Máquina para evaluación del desgate corrosivo y Pulidora metalográfica
A12: 16 | C12: 8 | H12: 1200 | I12: 12 | J12: 20 | M12: =+H12/120 -> 10 | P12: Tomacorrientes de uso general
A13: 18 | B13: 9 | H13: =+B13*48+C13*150+D13*1*746+E13+F13*2*746+G13 -> 432 | I13: 12 | J13: 20 | O13: =+H13/120 -> 3.6 | P13: Iluminación general
A14: 19-21 | D14: 1 | H14: 1600 | I14: 10 | K14: 20 | N14: =O14 -> 7.272727273 | O14: =+H14/220 -> 7.272727273 | P14: Aire Acondicionado 18000 BTU
A15: 20-22 | D15: 1 | H15: 800 | I15: 10 | K15: 20 | M15: =+H15/110 -> 7.272727273 | N15: =+H15/110 -> 7.272727273 | P15: Aire Acondicionado 9000 BTU
A16: 23 | H16: 0 | I16: 12 | J16: 20 | N16: =+H16/110 -> 0 | P16: Reserva
A17: 24 | H17: 0 | I17: 12 | J17: 20 | O17: =+H17/120 -> 0 | P17: Reserva
A19: SUBTOTAL | H19: =SUM(H6:H18) -> 11792 | M19: =SUM(M6:M18) -> 51.18181818 | N19: =SUM(N6:N18) -> 51.18181818 | O19: =SUM(O6:O18) -> 44.78181818
G21: CALCULO DE LA DEMANDA PARCIAL
C22: SUBTOTAL ILUMINACION | H22: =H13 -> 432 | L22: AL | M22: 1 | N22: =+H22*M22 -> 432
C23: SUBTOTAL TOMACORRIENTES | H23: =SUM(H6:H12)+H14 -> 10560 | L23: AL | M23: 0.5 | N23: =+H23*M23 -> 5280
C24: SUBTOTAL TOMACORRIENTES ESPECIALES | H24: =H18 -> 0 | L24: AL | M24: 1 | N24: =+H24*M24 -> 0
C25: TOTAL DEMANDA | H25: =SUM(H22:I24) -> 10992 | N25: =SUM(N22:N24) -> 5712
S30: PROYECTO | T30: TABLERO TRIBOLOGÍA
S31: CONTIENE | T31: TB-TRIB
S33: TABLERO | T33: DENOMINACION | U33: CARGA TOTAL | V33: DEMANDA | W33: F.P | X33: I (A) | Y33: PROTECCION | Z33: ALIMENTADOR | AA33: LONGITUD | AB33: RESISTENCIA | AC33: REGULACION | AD33: PERDIDAS
S34: UBICACIÓN | U34: VA | V34: VA | Y34: TRIPOLAR (A) | Z34: CONDUCTORES DE COBRE | AA34: (M) | AB34: OHMIOS /KM | AC34: PORCENTAJE | AD34: VATIOS
S35: =A3 -> TABLERO Tribología | T35: TB-TRIB | U35: =H19 -> 11792 | V35: =N25 -> 5712 | W35: 0.95 | X35: =+V35/(208*1.732*W35) -> 16.68988602 | Y35: 30 | Z35: ="5H CABLE CU No "&VLOOKUP(AB35,'CONSTANTES K'!$I$6:$J$16,2,FALSE)&" THHN" -> 5H CABLE CU No 8 THHN | AA35: 30 | AB35: 2.26 | AC35: =+(X35*AA35*AB35*1.732*100)/(1000*220) -> 0.8908575635 | AD35: =3*AB35*AA35*X35*X35/1000 -> 56.65753689
S36: =S35 -> TABLERO Tribología | T36: =T35 -> TB-TRIB | U36: =SUM(U35:U35) -> 11792 | V36: =SUM(V35:V35) -> 5712 | W36: 0.95 | X36: =+V36/(208*1.732*W36) -> 16.68988602 | Y36: 30 | Z36: ="5H CABLE CU No "&VLOOKUP(AB36,'CONSTANTES K'!$I$6:$J$16,2,FALSE)&" THHN" -> 5H CABLE CU No 8 THHN | AA36: =AA35 -> 30 | AB36: 2.26 | AC36: =+(X36*AA36*AB36*1.732*100)/(1000*220) -> 0.8908575635 | AD36: =3*AB36*AA36*X36*X36/1000 -> 56.65753689

Sheet UTILI DUCTOS
A1: CALCULO DE AREA UTILIZADA POR CONDUCTORES ELECTRICOS
A3: ITEM | B3: CONDUCTOR | C3: AREA DE SECCION mm2 | D3: DIAMETRO EXT. (mm) | E3: R (ohm/1000pie) | F3: R (Ohm/km)
A5: 1 | B5: ALAMBRE DE COBRE No 12 | C5: =0.785398*D5*D5 -> 7.793111655 | D5: 3.15 | E5: 2.05 | F5: =E5/0.3048 -> 6.725721785
A6: 2 | B6: ALAMBRE DE COBRE No 10 | C6: =0.785398*D6*D6 -> 12.2541723 | D6: 3.95 | E6: 1.29 | F6: =E6/0.3048 -> 4.232283465
A7: 3 | B7: ALAMBRE DE COBRE No 8 | C7: 21.23716192 | D7: 5.2 | E7: 0.81 | F7: 2.657480315
A8: 4 | B8: CABLE DE COBRE No 8 | C8: 24.0181777 | D8: 5.53 | E8: 0.81 | F8: 2.657480315
A9: 5 | B9: CABLE DE COBRE No 6 | C9: 32.87746714 | D9: 6.47 | E9: 0.51 | F9: 1.673228346
A10: 6 | B10: CABLE DE COBRE No 4 | C10: 53.19728419 | D10: 8.23 | E10: 0.321 | F10: 1.053149606
A11: 7 | B11: CABLE DE COBRE No 2 | C11: 74.2031464 | D11: 9.72 | E11: 0.201 | F11: 0.6594488189
A12: 8 | B12: CABLE DE COBRE No 1/0 | C12: 113.6635054 | D12: 12.03 | E12: 0.127 | F12: 0.4166666667
A13: 9 | B13: CABLE DE COBRE No 2/0 | C13: 135.1940135 | D13: 13.12 | E13: 0.101 | F13: 0.3313648294
A14: 10 | B14: CABLE DE COBRE No 4/0 | C14: 194.5804695 | D14: 15.74 | E14: 0.0626 | F14: 0.2053805774
A16: 11 | B16: CABLE XLPE 15 KV 133% 1/0 | C16: 593.9572375 | D16: 27.5
A17: 12 | B17: CABLE FLEXIBLE ST 2No 12 | C17: 164.6747128 | D17: 14.48
A18: 13 | B18: CABLE FLEXIBLE ST 3No 12 | C18: 181.9361901 | D18: 15.22
A21: RED SUBTERRANEA PARA BAJA TENSION CABLE DE COBRE THHN
A23: CONDUCTOR | B23: KV | C23: MATERIAL | D23: SISTEMA | E23: R (OH/KM) | F23: Xl(OH/KM) | G23: CONSTANTE K | H23: In (A)
A25: 2 | B25: 0,208-120 | C25: Cu | D25: TRIFASICO 4 H | E25: 0.58578 | F25: 0.11977 | G25: 0.0013076 | H25: 115
A26: 1/0 | B26: 0,208-120 | C26: Cu | D26: TRIFASICO 4 H | E26: 0.36836 | F26: 0.11758 | G26: 0.000864 | H26: 150
A27: 2/0 | B27: 0,208-120 | C27: Cu | D27: TRIFASICO 4 H | E27: 0.29215 | F27: 0.11507 | G27: 0.0007092 | H27: 175
A31: CALCULO DE AREA UTILIZADA POR CONDUTORES ELECTRICOS
A33: ITEM | B33: DUCTO | C33: AREA DE SECCION mm2 | D33: DIAMETRO
A34: 1 | B34: CONDUIT PVC DIAM 1/2 | C34: =0.785398*D34*D34 -> 126.6768434 | D34: 12.7
A35: 2 | B35: CONDUIT PVC DIAM 3/4 | C35: 285.0228977 | D35: 19.05
A36: 3 | B36: CONDUIT PVC DIAM 1 | C36: 506.7073737 | D36: 25.4
A37: 4 | B37: CONDUIT PVC DIAM 1 1/2 | C37: 1140.091591 | D37: 38.1
A38: 5 | B38: DUCTO ELECTRICO PVC DIAM 2" | C38: 2026.829495 | D38: 50.8
A39: 6 | B39: DUCTO ELECTRICO PVC DIAM 3 | C39: 4560.366363 | D39: 76.2
A40: 7 | B40: DUCTO ELECTRICO PVC DIAM 4 | C40: 8107.317979 | D40: 101.6
A43: CALCULO DE UTILIZACIO DE DUCTOS
A44: CONDUCTOR | B44: AREA DE SECCION | C44: No DE COND | D44: TOTA AREA OCUPADA
A46: =+B14 -> CABLE DE COBRE No 4/0 | B46: =+C14 -> 194.5804695 | C46: 8 | D46: =+B46*C46 -> 1556.643756
A48: AREA DEL DUCTO DEL TRAMO
A50: =+B39 -> DUCTO ELECTRICO PVC DIAM 3 | B50: =+C39 -> 4560.366363
A52: PORCENTAJE DE OCUPACION DEL DUCTO | D52: =+D46/B50 -> 0.3413418205

Sheet CONSTANTES K
C4: Resistencia a corriente alterna R (ohm/km) | F4: Reactancia Inductiva XL (ohm/km) | H4: PESO Kg/m | I4: Zeficaz FP=0.85
B5: Calibre AWG / kcmil | C5: Conduit de PVC | D5: Conduit de Aluminio | E5: Conduit de Acero | F5: Conduit de PVC o Aluminio | G5: Conduit de Acero
B6: 14 | C6: 10.17 | D6: 10.17 | E6: 10.17 | F6: 0.19 | G6: 0.24 | H6: 0.0245 | I6: 8.86 | J6: 14
B7: 12 | C7: 6.56 | D7: 6.56 | E7: 6.56 | F7: 0.177 | G7: 0.223 | H7: 0.0369 | I7: 5.58 | J7: 12
B8: 10 | C8: 3.94 | D8: 3.94 | E8: 3.94 | F8: 0.164 | G8: 0.207 | H8: 0.0586 | I8: 3.61 | J8: 10
B9: 8 | C9: 2.56 | D9: 2.56 | E9: 2.56 | F9: 0.171 | G9: 0.213 | H9: 0.0957 | I9: 2.26 | J9: 8
B10: 6 | C10: 1.61 | D10: 1.61 | E10: 1.61 | F10: 0.167 | G10: 0.21 | H10: 0.145 | I10: 1.44 | J10: 6
B11: 4 | C11: 1.02 | D11: 1.02 | E11: 1.02 | F11: 0.157 | G11: 0.197 | H11: 0.232 | I11: 0.951 | J11: 4
B12: 2 | C12: 0.623 | D12: 0.656 | E12: 0.656 | F12: 0.148 | G12: 0.187 | H12: 0.356 | I12: 0.623 | J12: 2
B13: 1/0 | C13: 0.394 | D13: 0.427 | E13: 0.427 | F13: 0.144 | G13: 0.18 | H13: 0.556 | I13: 0.427 | J13: 1/0
B14: 2/0 | C14: 0.328 | D14: 0.328 | E14: 0.328 | F14: 0.141 | G14: 0.177 | H14: 0.691 | I14: 0.361 | J14: 2/0
B15: 3/0 | C15: 0.253 | D15: 0.269 | E15: 0.259 | F15: 0.138 | G15: 0.171 | H15: 0.86 | I15: 0.289 | J15: 3/0
B16: 4/0 | C16: 0.203 | D16: 0.219 | E16: 0.207 | F16: 0.135 | G16: 0.167 | H16: 1.072 | I16: 0.243 | J16: 4/0
B17: 250 | H17: 1.278
B18: 300 | H18: 1.52
B19: 350 | H19: 1.761
